{"text_format":"1","workbook":"xlsx","n_sheets":3,"sheets":["Equipment ","Planning, Training, Exercise","Sheet2"],"not_rendered":{"charts":0,"images":0,"macros":1,"external_links":0,"defined_names":16,"comments":0,"pivot_tables":0},"unopened":[],"bounds":{"document_bytes":16777216,"sheet_cells":100000,"rows_first":2000,"rows_last":500,"rows_between":2000,"halvings":0,"cell_chars":16384,"cell_head_chars":4096},"cells_cut":0,"cells_raw":0,"read":"whole","date_system":"1900"}

{"sheet":"Equipment ","index":0,"n_rows":53,"n_cols":12,"rows_kept":53,"cut":false,"hidden":false,"merged":[[52,1,52,3],[51,1,51,3],[5,1,5,4],[47,7,47,8],[48,7,48,8],[49,7,49,8],[50,7,50,8],[52,7,52,8],[7,1,7,2],[8,1,8,2],[9,1,9,2],[10,1,10,2],[11,1,11,2],[12,1,12,2],[13,1,13,2],[14,1,14,2],[15,1,15,2],[16,1,16,2],[17,1,17,2],[18,1,18,2],[19,1,19,2],[20,1,20,2],[21,1,21,2],[22,1,22,2],[23,1,23,2],[24,1,24,2],[33,1,33,2],[34,1,34,2],[35,1,35,2],[36,1,36,2],[25,1,25,2],[26,1,26,2],[27,1,27,2],[28,1,28,2],[29,1,29,2],[43,1,43,2],[44,1,44,2],[45,1,45,2],[46,1,46,2],[1,3,1,4],[2,3,2,4],[3,3,3,4],[37,1,37,2],[38,1,38,2],[39,1,39,2],[30,1,30,2],[40,1,40,2],[41,1,41,2],[42,1,42,2],[31,1,31,2],[32,1,32,2]]}
[]
[null,"Subapplicant:  "]
[null,"Project Number: "]
[null,"Project Name:"]
[]
[]
[]
[null,"IJ",null,"Core Capability","Equipment Category","Item","AEL Reference Number","Quantity","Unit Cost","Total Cost","Agency","Discipline"]
[null,null,null,null,null,null,null,null,null,{"$f":"H9*I9","v":0}]
[null,null,null,null,null,null,null,null,null,{"$f":"H10*I10","v":0}]
[null,null,null,null,null,null,null,null,null,0]
[null,null,null,null,null,null,null,null,null,0]
[null,null,null,null,null,null,null,null,null,0]
[null,null,null,null,null,null,null,null,null,0]
[null,null,null,null,null,null,null,null,null,0]
[null,null,null,null,null,null,null,null,null,0]
[null,null,null,null,null,null,null,null,null,{"$f":"H17*I17","v":0}]
[null,null,null,null,null,null,null,null,null,{"$f":"H18*I18","v":0}]
[null,null,null,null,null,null,null,null,null,{"$f":"H19*I19","v":0}]
[null,null,null,null,null,null,null,null,null,0]
[null,null,null,null,null,null,null,null,null,0]
[null,null,null,null,null,null,null,null,null,0]
[null,null,null,null,null,null,null,null,null,0]
[null,null,null,null,null,null,null,null,null,0]
[null,null,null,null,null,null,null,null,null,0]
[null,null,null,null,null,null,null,null,null,{"$f":"H26*I26","v":0}]
[null,null,null,null,null,null,null,null,null,0]
[null,null,null,null,null,null,null,null,null,0]
[null,null,null,null,null,null,null,null,null,0]
[null,null,null,null,null,null,null,null,null,0]
[null,null,null,null,null,null,null,null,null,0]
[null,null,null,null,null,null,null,null,null,0]
[null,null,null,null,null,null,null,null,null,0]
[null,null,null,null,null,null,null,null,null,0]
[null,null,null,null,null,null,null,null,null,0]
[null,null,null,null,null,null,null,null,null,0]
[null,null,null,null,null,null,null,null,null,{"$f":"H37*I37","v":0}]
[null,null,null,null,null,null,null,null,null,0]
[null,null,null,null,null,null,null,null,null,0]
[null,null,null,null,null,null,null,null,null,0]
[null,null,null,null,null,null,null,null,null,{"$f":"H41*I41","v":0}]
[null,null,null,null,null,null,null,null,null,{"$f":"H42*I42","v":0}]
[null,null,null,null,null,null,null,null,null,{"$f":"H43*I43","v":0}]
[null,null,null,null,null,null,null,null,null,0]
[null,null,null,null,null,null,null,null,null,0]
[null,null,null,null,null,null,null,null,null,0]
[null,null,null,null,null,null,null,null,null,{"$f":"H47*I47","v":0}]
[null,null,null,null,null,null,null,"Equipment Subtotal  ",null,{"$f":"SUM(J9:J47)","v":0}]
[null,null,null,null,null,null,null,"Planning Subtotal",null,{"$f":"'Planning, Training, Exercise'!$K$16","v":0}]
[null,null,null,null,null,null,null,"Training Subtotal",null,{"$f":"'Planning, Training, Exercise'!$K$26","v":0}]
[null,null,null,null,null,null,null,"Exercise Subtotal",null,{"$f":"'Planning, Training, Exercise'!$K$36","v":0}]
[]
[null,null,null,null,null,null,null,"PROJECT TOTAL",null,{"$f":"SUM(J48:J51)","v":0}]

{"sheet":"Planning, Training, Exercise","index":1,"n_rows":39,"n_cols":16,"rows_kept":39,"cut":false,"hidden":false,"merged":[[1,3,1,8],[1,9,1,12],[2,3,2,8],[2,9,2,12],[3,3,3,8],[3,9,3,12],[13,5,13,9],[4,1,4,5],[15,5,15,9],[16,8,16,9],[6,2,14,2],[6,4,14,4],[15,1,15,4],[10,5,10,9],[11,5,11,9],[8,5,8,9],[14,5,14,9],[9,5,9,9],[7,5,7,9],[12,5,12,9],[6,5,6,9],[16,5,16,6],[25,5,25,9],[20,5,20,6],[20,8,20,9],[17,5,17,6],[17,8,17,9],[21,5,21,6],[23,8,23,9],[24,8,24,9],[21,8,21,9],[22,8,22,9],[22,5,22,6],[18,5,18,6],[18,8,18,9],[19,5,19,6],[23,5,23,6],[24,5,24,6],[16,4,24,4],[38,1,38,3],[37,1,37,3],[38,5,38,9],[34,5,34,9],[29,5,29,9],[36,5,36,9],[33,5,33,9],[26,5,26,9],[27,5,27,9],[30,5,30,9],[35,5,35,9],[28,5,28,9],[32,5,32,9],[31,5,31,9],[19,8,19,9]]}
[]
[null,"                            Subapplicant:"]
[null,"                       Project Number: "]
[null,"                           Project Name:"]
[null,null,null,null,null,null,null,null,null,null,null,null,null,null,null,"IJs_2021"]
[null,null,null,null,null,null,null,null,null,null,null,null,null,null,null," "]
[null,"IJ",null,"Core Capability",null,"    Planning/Description of Expense",null,null,null,null,"Total Cost","Agency","Discipline",null,null,"1. Combatting Domestic Violent Extremism (FPA)"]
[null,null,null,null,null,null,null,null,null,null,0,null,null,null,null,"2. Cybersecurity (FPA)"]
[null,null,null,null,null,null,null,null,null,null,0,null,null,null,null,"3. Information Sharing with Federal Partners (FPA)"]
[null,null,null,null,null,null,null,null,null,null,0,null,null,null,null,"4. Soft Target Hardening (FPA)"]
[null,null,null,null,null,null,null,null,null,null,0,null,null,null,null,"5. Addressing Emerging Threats (FPA)"]
[null,null,null,null,null,null,null,null,null,null,0,null,null,null,null,"6. Communications (SIJ)"]
[null,null,null,null,null,null,null,null,null,null,0,null,null,null,null,"7. Planning (SIJ)"]
[null,null,null,null,null,null,null,null,null,null,0,null,null,null,null,"8. CBRNE (SIJ)"]
[null,null,null,null,null,null,null,null,null,null,0,null,null,null,null,"9. Community Resilience and Engagement (SIJ)"]
[null,null,null,null,null,"Planning Subtotal",null,null,null,null,{"$f":"SUM(K8:K15)","v":0},null,null,null,null,"10. EOC (SIJ)"]
[null,"IJ",null,"Core Capability",null,"    Training Course",null,"Item/Expense","Number Trained",null,"Total Cost","Agency","Discipline"]
[null,null,null,null,null,null,null,null,null,null,0]
[null,null,null,null,null,null,null,null,null,null,0]
[null,null,null,null,null,null,null,null,null,null,0]
[null,null,null,null,null,null,null,null,null,null,0]
[null,null,null,null,null,null,null,null,null,null,0]
[null,null,null,null,null,null,null,null,null,null,0]
[null,null,null,null,null,null,null,null,null,null,0]
[null,null,null,null,null,null,null,null,null,null,0]
[null,null,null,null,null,"Training Subtotal",null,null,null,null,{"$f":"SUM(K18:K25)","v":0}]
[null,"IJ",null,"Core Capability",null,"Exercise/Description of Activities",null,null,null,null,"Total Cost","Agency","Discipline"]
[null,null,null,null,null,null,null,null,null,null,0]
[null,null,null,null,null,null,null,null,null,null,0]
[null,null,null,null,null,null,null,null,null,null,0]
[null,null,null,null,null,null,null,null,null,null,0]
[null,null,null,null,null,null,null,null,null,null,0]
[null,null,null,null,null,null,null,null,null,null,0]
[null,null,null,null,null,null,null,null,null,null,0]
[null,null,null,null,null,null,null,null,null,null,0]
[null,null,null,null,null,"Exercise Subtotal",null,null,null,null,{"$f":"SUM(K28:K35)","v":0}]
[null,null,null,null,null,"Equipment Subtotal",null,null,null,null,{"$f":"'Equipment '!$J$48","v":0}]
[]
[null,null,null,null,null,"PROJECT TOTAL",null,null,null,null,{"$f":"SUM(K37,K36,K26,K16)","v":0}]

{"sheet":"Sheet2","index":2,"n_rows":25,"n_cols":14,"rows_kept":25,"cut":false,"hidden":true,"merged":[]}
[null,"Disciplines",null,"Target",null,"Equipment",null,null,null,null,null,null,null,"Core_Capabilities"]
[null,"LE",null,"Access Control and Identity Verification",null,"Agriculture Terrorism Prevention, Resource, and Mitigation Equipment",null,null,null,null,null,null,null,"Planning"]
[null,"FS",null,"Community Resilience",null,"CBRNE Aviation Equipment",null,null,null,null,null,null,null,"Public Information and Warning"]
[null,"PW",null,"Environmental Response/Health and Safety",null,"CBRNE Incident Response Vehicles",null,null,null,null,null,null,null,"Operational Coordination"]
[null,"EMS",null,"Infrastructure Systems",null,"CBRNE Logistical Support Equipment",null,null,null,null,null,null,null,"Forensics and Attribution"]
[null,"EMA",null,"Intelligence and Information Sharing",null,"CBRNE Operational and Search and Rescue Equipment",null,null,null,null,null,null,null,"Intelligence and Information Sharing"]
[null,"PH",null,"Interdiction and Disruption",null,"CBRNE Prevention and Response Watercraft",null,null,null,null,null,null,null,"Interdiction and Disruption"]
[null,"HC",null,"On-Scene Security and Protection",null,"CBRNE Reference Materials",null,null,null,null,null,null,null,"Screening, Search, and Detection"]
[null,"HAZ",null,"Operational Communications",null,"Cyber Security Enhancement Equipment",null,null,null,null,null,null,null,"Access Control and Identity Verifcation"]
[null,"EMF",null,"Operational Coordination",null,"Decontamination",null,null,null,null,null,null,null,"Cybersecurity"]
[null,"PSC",null,"Planning",null,"Detection",null,null,null,null,null,null,null,"Physical Protective Measures"]
[null,"GA",null,"Public Information and Warning",null,"Explosive Device Mitigation and Remediation Equipment",null,null,null,null,null,null,null,"Community Resilience"]
[null,null,null,"Screening, Search, and Detection",null,"Information Technology",null,null,null,null,null,null,null,"Long-term Vulnerability Reduction"]
[null,null,null,"Situational Assessment",null,"Inspection and Screening Systems",null,null,null,null,null,null,null,"Risk and Disaster Resilience Assessment"]
[null,null,null,"Threats and Hazard Identification",null,"Interoperable Communications Equipment",null,null,null,null,null,null,null,"Threats and Hazard Identification"]
[null,null,null,null,null,"Intervention Equipment",null,null,null,null,null,null,null,"Critical Transportation"]
[null,null,null,"IJ's",null,"Medical",null,null,null,null,null,null,null,"Environmental Response/Health and Security"]
[null,null,null,"1. Planning ",null,"Other Authorized Equipment",null,null,null,null,null,null,null,"Fatality Management Services"]
[null,null,null,"2. Interoperable Communications",null,"Personal Protective Equipment",null,null,null,null,null,null,null,"Infrastructure Systems"]
[null,null,null,"3. CBRNE Detection, Response and Recovery",null,"Physical Security Enhancement Equipment",null,null,null,null,null,null,null,"Mass Care Services"]
[null,null,null,"4. Community Resilience",null,"Power",null,null,null,null,null,null,null,"Mass Search and Rescue Operations"]
[null,null,null,"5. EOC Enhancements",null,"Terrorism Incident Prevention Equipment",null,null,null,null,null,null,null,"On-scene Security and Protection"]
[null,null,null,"6. Mass Care and Mass Casualty",null,null,null,null,null,null,null,null,null,"Operational Communications"]
[null,null,null,null,null,null,null,null,null,null,null,null,null,"Situational Assessment"]
[null,null,null,null,null,null,null,null,null,null,null,null,null,"Economic Recovery"]